Cogmind - Beta 15 @@@ ROGUE MODE // 2025.10.19 @ 19:56:40 Player: the Result: Destroyed by Striker with Plasma Lance Performance ------------- Evolutions (7) 3500 Regions Visited (22) 4400 Robots Destroyed (204) 1020 Value Destroyed (8896) 8896 Prototype IDs (89) 1780 Alien Tech Used (3) 600 Bonus (7439) 7439 TOTAL SCORE: 27635 Bonus ------- High Alert Combat Kills 283 Follower Combat Kills 2968 Awakened Behemoth Slayer 1000 Network Hubs Disabled 200 Delivered SUBCON Basin 2000 Met Imprinter 300 Was Imprinted 300 Met Zhirov 300 Built Enhanced Grunts 300 A7 Reached Mainframe 300 Met R17 at Cetus 500 Found Hidden Lab 3000 Friendly Fire -4012 Cogmind --------- Core Integrity 0/1300 Matter 5/300 Energy 100/100 System Corruption 3% Temperature Cool (0) Movement Core (50) Location -3/Testing Parts ------- > --- POWER (4) -------- (None) > --- PROPULSION (5) --- (None) > --- UTILITY (9) ------ (None) > --- WEAPON (3) ------- (None) > --- INVENTORY (5) ---- Advanced Sensor Array Advanced Signal Interpreter AEGIS Remote Shield Core Reset Matrix Enhanced Force Lance Peak State ------------ > --- POWER ------------ Fusion Reactor Light Antimatter Reactor > --- PROPULSION ------- Centrium Heavy Treads Advanced Myomer Leg Advanced Myomer Leg Advanced Myomer Leg > --- UTILITY ---------- Improved Cryofiber Web High-capacity Storage Unit Enhanced Optical Array Advanced Sensor Array Advanced Signal Interpreter Core Analyzer Medium Regenerative Plating Advanced Shield Generator Tech Extrapolator > --- WEAPON ----------- Advanced Variable Charge Gun Advanced Variable Charge Gun Advanced Variable Charge Gun > --- INVENTORY -------- Advanced Medium Treads Advanced Medium Treads Improved Cryofiber Web Advanced Heat Sink Deep Structural Scanner Advanced Sensor Array Tactical Coordination Suite Advanced Particle Charger Improved Weapon Cycler Zionite Weapon Casing Centrium Medium Armor Plating Graphene Brace Authchip [Weapon] Authchip [Weapon] Authchip [Weapon] Transdimensional Reconstructor Advanced Variable Charge Gun Fusion Bomb Launcher Remote Datajack CR-A16's Behemoth Slayer [Rating: 136] Favorites ----------- Power Light Antimatter Reactor Engine F-cell Engine Power Core Light Nuclear Core Reactor Light Antimatter Reactor Propulsion Improved Medium Treads Treads Improved Medium Treads Leg Advanced Myomer Leg Wheel Subdweller Monowheel Hover Unit Antigrav System Flight Unit Cooled Impulse Thruster Utility Core Analyzer Device Deep Structural Scanner Storage High-capacity Storage Unit Processor Core Analyzer Hackware Authchip [Propulsion] Protection Medium Regenerative Plating Weapon Advanced Variable Charge Gun Energy Gun Advanced Variable Charge Gun Energy Cannon Beam Cannon Ballistic Gun Gauss Rifle Launcher Rocket Launcher Special Weapon Remote Datajack Slashing Weapon Chainsword Piercing Weapon CR-A16's Behemoth Slayer Build | -11 -10 -10 -9 -7 -7 -7 -6 -6 -6 -6 -6 -6 -5 -5 -5 -5 -4 -4 -4 -4 -3 -3 ------- Run | Yrd Mat Sub Rec Fac Low Zio Pro Fac Ext Cet Arc Hub Fac Upp Upp Zhi Pro Fac Arm Lab Res Tes Slots Evolved 14 | . . . . 6 . . . 2 . . . . 2 . . . . 2 . . 2 . Power 3 | . . . . . . . . . . . . . 1 . . . . . . . 2 . Propulsion 3 | . . . . 2 . . . . . . . . . . . . . 1 . . . . Utility 7 | . . . . 3 . . . 2 . . . . 1 . . . . 1 . . . . Weapon 1 | . . . . 1 . . . . . . . . . . . . . . . . . . Parts Attached 204 | 7 17 21 4 35 5 4 4 17 13 7 5 2 4 1 4 3 3 18 15 6 5 4 Power 26 | 1 2 3 2 3 1 . 1 . 2 1 . . 1 . . 1 1 2 3 . 2 . Engine 13 | 1 2 3 2 3 . . 1 . . . . . 1 . . . . . . . . . Core 2 | . . . . . 1 . . . . . . . . . . . . . 1 . . . Reactor 11 | . . . . . . . . . 2 1 . . . . . 1 1 2 2 . 2 . Propulsion 47 | 2 5 9 1 9 . . 3 4 3 1 1 . . . 1 1 . 3 3 . . 1 Treads 23 | . 4 4 . 3 . . . 4 3 1 1 . . . 1 . . . 2 . . . Leg 14 | 2 1 . . 4 . . 3 . . . . . . . . 1 . 3 . . . . Wheel 8 | . . 5 1 2 . . . . . . . . . . . . . . . . . . Hover 1 | . . . . . . . . . . . . . . . . . . . 1 . . . Flight 1 | . . . . . . . . . . . . . . . . . . . . . . 1 Utility 67 | 2 4 3 . 11 1 2 . 10 4 3 2 . 3 . 2 1 . 8 3 3 3 2 Device 40 | 1 2 1 . 5 . 2 . 6 3 1 2 . 2 . . 1 . 7 1 1 3 2 Storage 6 | 1 2 . . 2 . . . 1 . . . . . . . . . . . . . . Processor 7 | . . . . 3 1 . . 1 1 . . . 1 . . . . . . . . . Hackware 5 | . . . . . . . . . . . . . . . . . . 1 2 2 . . Protection 9 | . . 2 . 1 . . . 2 . 2 . . . . 2 . . . . . . . Artifact . | . . . . . . . . . . . . . . . . . . . . . . . Weapon 64 | 2 6 6 1 12 3 2 . 3 4 2 2 2 . 1 1 . 2 5 6 3 . 1 Energy Gun 27 | . 1 2 1 5 . 1 . 1 4 2 2 1 . . . . 1 3 3 . . . Energy Cannon 14 | . 2 3 . 1 . . . 1 . . . 1 . . . . 1 2 1 2 . . Ballistic Gun 13 | 2 1 1 . 3 3 . . . . . . . . . . . . . 2 1 . . Ballistic Cannon . | . . . . . . . . . . . . . . . . . . . . . . . Launcher 4 | . 1 . . 2 . . . . . . . . . 1 . . . . . . . . Special Weapon 2 | . 1 . . . . 1 . . . . . . . . . . . . . . . . Impact Weapon . | . . . . . . . . . . . . . . . . . . . . . . . Slashing Weapon 1 | . . . . 1 . . . . . . . . . . . . . . . . . . Piercing Weapon 3 | . . . . . . . . 1 . . . . . . 1 . . . . . . 1 Special Melee Weapon . | . . . . . . . . . . . . . . . . . . . . . . . Unidentified Prototypes 17 | . . . . 1 . 1 . 1 . 3 . 1 . . . 4 . . 1 4 . 1 Corrupted Parts 4 | . . . . . . . . . . 1 3 . . . . . . . . . . . System Corruption 7 | . . . . . . . . . . 3 4 . . . . . . . . . . . Parts Lost 35 | . 2 3 . 3 1 . 1 3 . . . . . 1 . . 4 8 7 . 1 1 Power 9 | . 1 1 . . 1 . . . . . . . . . . . 2 2 2 . . . Propulsion 10 | . . . . 2 . . . . . . . . . . . . 1 1 4 . 1 1 Utility 8 | . 1 1 . . . . . 3 . . . . . 1 . . . 1 1 . . . Weapon 8 | . . 1 . 1 . . 1 . . . . . . . . . 1 4 . . . . Highest Loss Streak 6 | . 2 2 . 1 1 . 1 1 . . . . . 1 . . 3 6 4 . 1 1 To Critical Strikes 1 | . . . . . . . . . . . . . . . . . 1 . . . . . Average Backups 16 | 1 9 16 9 11 19 20 19 19 19 19 19 18 18 18 18 19 18 19 14 4 3 3 Power . | . 1 1 . . . . . 1 1 1 1 1 . . . . . . . . . . Propulsion 2 | . 2 4 1 1 4 4 4 3 1 . 1 1 1 1 1 2 3 1 . . . . Utility 6 | . 1 3 2 2 7 7 7 7 9 10 9 10 10 11 11 10 10 11 7 1 1 1 Weapon 5 | . 3 6 5 6 7 8 7 5 6 6 7 5 5 5 5 4 3 3 6 2 1 1 Tool/Special . | . . . . . . . . . . . . . . . . . . . . . . . Unused Backups 57 | . 3 9 1 2 2 . 1 8 3 3 . 1 . . . 2 . 4 15 . . 3 Power 2 | . . . . . . . . 2 . . . . . . . . . . . . . . Propulsion 10 | . . 1 . . . . 1 2 2 1 . . . . . . . 3 . . . . Utility 20 | . . 4 . . 1 . . 3 1 1 . . . . . 1 . 1 6 . . 2 Weapon 23 | . 3 4 1 2 . . . 1 . 1 . 1 . . . 1 . . 9 . . . Tool/Special 2 | . . . . . 1 . . . . . . . . . . . . . . . . 1 Average Slot Usage (%) 91 | . 99 98 91 87 91 92 91 93 100 89 92 93 93 93 94 91 83 92 75 66 63 4 Engine 4 | . 13 13 10 6 . . 1 6 1 . . . 4 5 5 4 1 . . . . . Core 1 | . . . . . 6 7 5 . . . . . . . . . . . 1 5 1 . Reactor 3 | . . . . . . . . . 4 6 6 6 5 5 5 5 8 9 5 5 6 . Treads 11 | . 14 20 19 6 . . . 4 26 21 20 20 17 17 17 14 6 4 2 10 8 . Leg 6 | . 13 . . 10 21 21 21 14 . . . . . . . . . 15 8 . . . Wheel 1 | . . 6 8 3 . . . . . . . . . . . . . . . . . . Device 11 | . 13 6 . 9 13 12 12 19 19 19 15 14 13 10 10 11 11 15 15 8 11 1 Storage 7 | . 14 14 14 6 7 7 7 6 6 6 6 6 5 5 5 5 5 5 3 . . . Processor 15 | . . . . 20 21 21 21 18 20 20 20 20 23 23 23 23 23 20 15 15 12 . Protection 3 | . . 6 14 . . 1 1 3 . . 3 4 2 5 5 4 5 5 3 . . . Energy Gun 10 | . 2 8 3 16 . 3 17 . 19 15 20 13 12 16 16 14 16 14 7 . . . Energy Cannon 4 | . 6 15 19 . 2 . . 2 . . . 5 3 . . . . . 1 . . . Ballistic Gun 4 | . 18 3 . 1 15 17 3 15 . . . . . . . . . . 1 6 3 . Peak Build Rating 136 | 7 10 35 35 66 65 71 72 84 78 104 104 104 117 117 121 126 126 136 129 97 102 26 Average Rating 70 | 4 8 14 22 52 62 65 66 76 73 89 103 102 112 116 116 118 111 132 98 78 85 14 On Entrance 71 | . 7 8 35 16 63 65 67 68 67 76 104 104 102 117 116 116 126 105 121 72 91 4 Naked Turns 55 | . . . . . . . . . . . . . . . . . . . . . 34 21 Heaviest Build 107 | 12 20 105 105 71 65 65 73 88 71 85 86 89 101 97 103 97 97 104 107 43 43 5 Greatest Support 160 | 20 40 40 40 88 88 88 95 95 100 140 140 140 140 140 140 160 160 115 115 40 40 10 Greatest Overweight (x) 22 | . . 5 6 3 . . . . . . . 1 . . . . 1 1 22 1 1 . Average Overweight (x) . | . . 3 3 . . . . . . . . . . . . . . . . . . . Largest Inventory Capacity 25 | 8 25 25 25 20 20 20 20 20 20 20 20 20 20 20 20 20 20 20 20 5 5 5 Average Capacity 19 | 5 9 24 20 13 20 20 20 20 20 20 20 20 20 20 20 20 20 20 15 5 5 5 Most Carried 25 | 6 10 25 25 19 20 20 20 20 20 20 20 20 20 20 20 20 20 20 20 5 5 5 Average Carried 17 | 1 9 18 17 12 19 19 19 19 19 19 19 19 19 19 19 19 18 19 14 4 4 4 Final Capacity 25 | 8 10 25 10 20 20 20 20 20 20 20 20 20 20 20 20 20 20 20 5 5 5 5 Final Carried 25 | 6 10 25 10 19 20 20 20 20 20 20 20 20 20 19 20 20 18 18 5 5 4 5 Class Distribution -------------------- 29% | Scavenger-Skirmisher 26% | Mutant 17% | Skirmisher 7% | Scavenger-Tank 4% | Scavenger-Mutant 3% | Commander-Skirmisher Dominant Class ---------------- Mutant | -10/Materials Mutant | -10/Subcaves Mutant | -9/Recycling Scavenger-Skirmisher | -7/Factory Skirmisher | -7/Lower Caves Skirmisher | -7/Zion Skirmisher | -6/Proximity Caves Skirmisher | -6/Factory Scavenger-Skirmisher | -6/Extension Commander-Skirmisher | -6/Cetus Scavenger-Tank | -6/Archives Scavenger-Tank | -6/Hub_04(d) Scavenger-Skirmisher | -5/Factory Scavenger-Skirmisher | -5/Upper Caves Scavenger-Skirmisher | -5/Upper Caves Scavenger-Skirmisher | -5/Zhirov Scavenger-Skirmisher | -4/Proximity Caves Scavenger-Skirmisher | -4/Factory Mutant | -4/Armory Mutant | -4/Lab Hacker-Mutant | -3/Research Mutant | -3/Testing Resources | -11 -10 -10 -9 -7 -7 -7 -6 -6 -6 -6 -6 -6 -5 -5 -5 -5 -4 -4 -4 -4 -3 -3 ----------- Run | Yrd Mat Sub Rec Fac Low Zio Pro Fac Ext Cet Arc Hub Fac Upp Upp Zhi Pro Fac Arm Lab Res Tes Matter Collected 6366 | 310 422 411 64 672 251 43 319 886 523 194 116 238 59 180 286 135 406 478 353 . 20 . Remotely . | . . . . . . . . . . . . . . . . . . . . . . . Salvage Created 10229 | 179 677 568 345 1001 191 . 85 864 977 158 398 532 208 210 176 219 745 2326 350 . 20 . Parts 480 | 20 40 39 10 64 7 . 7 37 38 15 35 24 5 3 10 6 16 85 16 . 3 . Haulers Intercepted 5 | . 2 . . 1 . . . . . . . 2 . . . . . . . . . . Recyclers Shooed 5 | 1 1 . 1 . . . . . . . . . . . . . . 2 . . . . Parts Field Recycled . | . . . . . . . . . . . . . . . . . . . . . . . Retrieved Matter . | . . . . . . . . . . . . . . . . . . . . . . . Parts Self-Destructed 63 | . . 17 . . 6 . 9 . . . . . . 3 8 6 14 . . . . . Prevented 3 | . . . . . . . 3 . . . . . . . . . . . . . . . Kills | -11 -10 -10 -9 -7 -7 -7 -6 -6 -6 -6 -6 -6 -5 -5 -5 -5 -4 -4 -4 -4 -3 -3 ------- Run | Yrd Mat Sub Rec Fac Low Zio Pro Fac Ext Cet Arc Hub Fac Upp Upp Zhi Pro Fac Arm Lab Res Tes Combat Hostiles Destroyed 151 | . 13 12 2 19 4 . 3 14 12 1 1 4 3 3 9 . 15 31 5 . . . Melee 1 | . . . . . . . . . 1 . . . . . . . . . . . . . Guns 102 | . 4 5 . 17 3 . 1 14 10 . 1 4 2 3 . . 10 24 4 . . . Cannons 21 | . 6 7 2 . . . . . . . . . 1 . . . . 5 . . . . AOE 21 | . 3 . . 2 1 . 2 . . . . . . . 8 . 5 . . . . . Classes Destroyed 20 | 2 7 1 1 2 . . . . 2 . . 3 . 1 . . 1 . . . . . Worker 6 | . 2 . . 2 . . . . . . . . . . . . . 2 . . . . Builder 2 | . . . . . . . . . 2 . . . . . . . . . . . . . Tunneler 7 | 5 . . . . . . . . . . . 1 . . . . . 1 . . . . Hauler 5 | . 2 . . 1 . . . . . . . 2 . . . . . . . . . . Recycler 12 | 1 . . 3 3 . . . 2 1 . . . . . . . . 2 . . . . Operator 11 | . 1 . . . . . . . 1 . 8 . . . . . . . . . 1 . Drone 2 | . . . . . . . . . . . . . . . . . 2 . . . . . Turret 2 | . . 2 . . . . . . . . . . . . . . . . . . . . Watcher 6 | . 2 . . 1 . . . . 1 . . 1 . . . . . 1 . . . . Swarmer 31 | . 3 . . 6 . . 2 6 . . . . . . 8 . 1 5 . . . . Grunt 46 | . 7 2 . 4 4 . 1 6 3 . . 1 1 . . . 6 11 . . . . Brawler 3 | . . . . . . . . . . . . 1 1 . . . . 1 . . . . Duelist 5 | . . . . . . . . . . . . . . 2 . . 3 . . . . . Sentry 19 | . . . 2 4 . . . . 5 . 1 . . 1 . . 1 4 1 . . . Hunter 6 | . . . . 1 . . . . 2 . . . . . . . 2 1 . . . . Programmer 19 | . . . . 4 . . . 2 . . . . 1 . . . . 9 3 . . . Heavy 1 | . . . . . . . . . . . . 1 . . . . . . . . . . Behemoth 5 | . . . . . . . . . 2 . . 1 . . 1 . . . 1 . . . Cetus Guard 1 | . . . . . . . . . . 1 . . . . . . . . . . . . Subdweller 13 | . 3 10 . . . . . . . . . . . . . . . . . . . . Z-Light 1 | . . . . . . . . . . . . 1 . . . . . . . . . . Decomposer 2 | . . . . . 2 . . . . . . . . . . . . . . . . . Best Kill Streak 7 | 6 4 2 2 3 4 . 2 3 2 1 3 2 2 1 5 . 7 7 2 . 1 . Combat Bots Only 7 | . 3 2 1 3 4 . 2 3 2 1 1 1 2 1 5 . 7 5 2 . . . Max Kills in Single Turn 3 | 1 3 1 1 2 1 . 2 2 2 1 1 2 1 1 3 . 3 2 1 . 1 . Gunslinging 1 | . . . . 1 . . . 1 1 . . . . . . . . 1 . . . . Exploded 3 | . 2 . . 2 1 . 2 . . . . . . . 3 . 3 . . . . . Melee 1 | . . . . . . . . . 1 . . . . . . . . . . . . . Uniques/NPCs Destroyed 1 | . . . . . . . . . . 1 . . . . . . . . . . . . A7 (-6/Cetus) Combat | -11 -10 -10 -9 -7 -7 -7 -6 -6 -6 -6 -6 -6 -5 -5 -5 -5 -4 -4 -4 -4 -3 -3 -------- Run | Yrd Mat Sub Rec Fac Low Zio Pro Fac Ext Cet Arc Hub Fac Upp Upp Zhi Pro Fac Arm Lab Res Tes Hostile Shots Fired 1270 | . 68 64 6 178 36 . 4 71 128 1 . 31 10 17 34 . 74 253 103 . 151 41 Missed 470 | . 19 24 6 66 5 . . 20 55 . . 17 4 2 13 . 23 84 35 . 70 27 Hits 800 | . 49 40 . 112 31 . 4 51 73 1 . 14 6 15 21 . 51 169 68 . 81 14 Melee 6 | . . . . . . . . . . . . . . . . . 2 2 . . 1 1 Projectile 794 | . 49 40 . 112 31 . 4 51 73 1 . 14 6 15 21 . 49 167 68 . 80 13 AOE 3 | . . . . . . . . . . . . . 3 . . . . . . . . . Critical Strikes 27 | . . 1 . 1 1 . . 2 2 . . 1 . . . . 5 7 5 . . 2 Part Disruptions 6 | . . . . . . . . . . . . 1 . . . . . 2 2 . 1 . Damage Taken 13485 | . 699 582 . 1209 587 . 71 833 775 65 46 289 286 346 320 . 1073 2775 1280 . 1897 352 Core 2188 | . 89 97 . 112 13 . . 67 45 . . . . . 33 . 22 123 274 . 1060 253 Absorbed by Shields 983 | . . . . . . . . 42 154 38 . . . . . . . 749 . . . . Reduced by Siege Mode 150 | . . . . . . . . . . . . . . . . . 90 60 . . . . Ignored by Resistances 11 | . . 11 . . . . . . . . . . . . . . . . . . . . Regen/Repaired (Parts) 1421 | . 74 . . . . . . . . 29 100 71 80 97 85 . 249 390 246 . . . Core Remaining (%) 78 | 100 . . 25 . . . 82 . . . . 86 . . . . 94 . . 81 . . Volleys Fired 815 | 10 77 69 16 55 67 1 5 82 38 23 63 26 25 20 22 10 42 146 17 . 1 . Largest 3 | 2 2 2 2 3 3 1 3 3 3 3 3 3 3 3 3 2 3 3 3 . 1 . Hottest 720 | 40 100 140 160 240 160 5 240 90 230 240 240 258 258 720 240 160 240 480 250 . 40 . Shots Fired 1461 | 20 144 110 23 118 75 1 9 153 106 64 67 57 41 46 26 15 100 257 28 . 1 . Gun 1117 | 20 102 56 . 103 18 . 7 108 104 62 65 31 23 46 22 10 90 231 18 . 1 . Cannon 292 | . 32 46 23 14 55 . . 45 . . . 24 17 . . . . 26 10 . . . Launcher 15 | . 2 . . 1 2 . 2 . . . . . . . 4 . 4 . . . . . Special 37 | . 8 8 . . . 1 . . 2 2 2 2 1 . . 5 6 . . . . . Kinetic 272 | 20 94 15 . 17 16 . . 108 . . . . . . . . . . 1 . 1 . Thermal 1153 | . 48 95 23 100 57 . 7 45 104 62 65 55 40 46 22 10 90 257 27 . . . Explosive 15 | . 2 . . 1 2 . 2 . . . . . . . 4 . 4 . . . . . Electromagnetic . | . . . . . . . . . . . . . . . . . . . . . . . Robot Hit Streak 41 | 8 17 19 10 10 4 5 14 13 11 11 7 8 4 15 . 7 19 41 9 . 3 . Robot Miss Streak 6 | 1 3 3 2 5 3 . 3 6 4 4 4 2 3 3 . 1 4 3 1 . . . Penetration Max 1 | . . . . . . . . 1 . . . . . . . . . . . . . . Secondary Targets 15 | . . . . 3 2 . . 2 2 1 . . . . . . 2 3 . . . . Max Gunslinging Chain 1 | . . . . 1 1 . . 1 1 1 . . . . . . 1 1 . . . . Shots Hit Robots 786 | 15 88 68 16 71 14 1 6 57 70 43 42 33 15 28 1 12 55 137 13 . 1 . Core Hits 395 | 7 35 25 3 54 15 . 10 31 31 17 23 16 5 7 9 2 31 67 6 . 1 . Critical Kills 13 | 1 1 . 1 . . . . 2 . . 7 . . . . . . . . . 1 . Critical Parts Destroyed 6 | . . 1 . . 1 . . 2 . 1 1 . . . . . . . . . . . Critical Strikes 22 | 1 1 1 1 . 1 . . 4 3 1 8 . . . . . . . . . 1 . Burn 3 | . . . . . . . . . 3 . . . . . . . . . . . . . Meltdown 1 | . . . 1 . . . . . . . . . . . . . . . . . . . Destroy 18 | 1 1 1 . . 1 . . 4 . 1 8 . . . . . . . . . 1 . Melee Attacks 68 | . . . . 27 2 . . 6 3 . . . . . 1 1 . . 5 13 10 . Impact . | . . . . . . . . . . . . . . . . . . . . . . . Slashing 29 | . . . . 27 2 . . . . . . . . . . . . . . . . . Piercing 39 | . . . . . . . . 6 3 . . . . . 1 1 . . 5 13 10 . Sneak Attacks 2 | . . . . 1 . . . 1 . . . . . . . . . . . . . . Combat Hostiles . | . . . . . . . . . . . . . . . . . . . . . . . Follow-up Attacks . | . . . . . . . . . . . . . . . . . . . . . . . Damage Inflicted 22428 | 167 1388 1356 442 1662 516 . 320 1444 1745 1156 1067 1024 456 824 850 239 2147 5204 413 . 8 . Guns 16733 | 167 802 618 . 1452 195 . 143 1336 1644 1156 1067 692 328 824 . 239 1349 4366 347 . 8 . Cannons 3035 | . 405 738 442 . 54 . . 32 . . . 332 128 . . . . 838 66 . . . Explosions 2395 | . 171 . . 132 267 . 177 . . . . . . . 850 . 798 . . . . . Melee 249 | . . . . 78 . . . 70 101 . . . . . . . . . . . . . Ramming 16 | . 10 . . . . . . 6 . . . . . . . . . . . . . . Kinetic 2672 | 167 672 120 . 206 163 . . 1336 . . . . . . . . . . . . 8 . Thermal 17096 | . 535 1236 442 1246 86 . 143 32 1644 1156 1067 1024 456 824 . 239 1349 5204 413 . . . Explosive 2395 | . 171 . . 132 267 . 177 . . . . . . . 850 . 798 . . . . . Electromagnetic . | . . . . . . . . . . . . . . . . . . . . . . . Impact . | . . . . . . . . . . . . . . . . . . . . . . . Slashing 78 | . . . . 78 . . . . . . . . . . . . . . . . . . Piercing 171 | . . . . . . . . 70 101 . . . . . . . . . . . . . Highest Corruption 21 | . . . . . . . . 3 3 6 6 8 . . . . . 13 21 21 3 3 Average Corruption 6 | . . . . . . . . 2 3 3 4 7 . . . . . 2 15 21 2 3 Corruption Purged 10 | . . . . . . . . . . . 10 . . . . . . . . . . . Corruption Blocked . | . . . . . . . . . . . . . . . . . . . . . . . Effects 200 | . . . . . . . . 14 33 16 8 44 . . . . . 15 44 16 6 4 Message Errors 41 | . . . . . . . . 2 7 6 4 7 . . . . . 2 7 5 1 . Matter Fused 42 | . . . . . . . . 4 6 2 1 8 . . . . . 5 12 2 2 . Heat Flow Errors 31 | . . . . . . . . 2 9 1 1 7 . . . . . 1 3 2 2 3 Energy Discharges 21 | . . . . . . . . 1 1 1 1 6 . . . . . 3 6 2 . . Parts Rejected 2 | . . . . . . . . . . 1 . . . . . . . . . . 1 . Parts Fused 4 | . . . . . . . . . 1 1 . 1 . . . . . . 1 . . . Data Loss (minor) 30 | . . . . . . . . 4 4 1 . 10 . . . . . 2 5 3 . 1 Data Loss (major) 6 | . . . . . . . . . 2 1 . 1 . . . . . . 1 1 . . Misfires 10 | . . . . . . . . 1 2 1 . 2 . . . . . . 4 . . . Alerts 6 | . . . . . . . . . 1 1 1 1 . . . . . . 1 1 . . Misdirections 2 | . . . . . . . . . . . . . . . . . . 1 1 . . . Weapon Failures 5 | . . . . . . . . . . . . 1 . . . . . 1 3 . . . Overload Shots 9 | . . . . . . . . . . 1 . . . 3 . . . 5 . . . . Overflow Damage 172 | . 7 . 43 . . . . . . . . . 21 . 35 . 24 31 11 . . . Projectiles 106 | . . . 43 . . . . . . . . . 21 . . . . 31 11 . . . Explosions 66 | . 7 . . . . . . . . . . . . . 35 . 24 . . . . . Melee . | . . . . . . . . . . . . . . . . . . . . . . . Knockbacks . | . . . . . . . . . . . . . . . . . . . . . . . Impact . | . . . . . . . . . . . . . . . . . . . . . . . Kinetic . | . . . . . . . . . . . . . . . . . . . . . . . Secondary . | . . . . . . . . . . . . . . . . . . . . . . . Self-Inflicted Damage 68 | . . . . . 68 . . . . . . . . . . . . . . . . . Shots 2 | . . . . . 2 . . . . . . . . . . . . . . . . . Rammed 2 | . 2 . . . . . . . . . . . . . . . . . . . . . Targets Rammed 3 | . 2 . . . . . . 1 . . . . . . . . . . . . . . Kicked 1 | . . . . . . . . 1 . . . . . . . . . . . . . . Crushed . | . . . . . . . . . . . . . . . . . . . . . . . Highest Temperature 420 | . 312 249 228 291 160 . 180 252 132 320 234 262 120 411 262 112 316 420 186 101 . 136 Average Temperature 78 | . 64 52 103 90 42 . 90 38 62 157 100 97 44 108 109 51 93 182 97 61 . 69 Received Heat Transfer 2486 | . 300 460 . 138 297 . 12 255 160 . . 90 9 45 . . 228 294 63 . 111 24 Effects 5 | . 1 . . 3 . . . . . . . . . . . . . 1 . . . . Energy Bleed 1 | . 1 . . . . . . . . . . . . . . . . . . . . . Interference 3 | . . . . 3 . . . . . . . . . . . . . . . . . . Damage (minor) 1 | . . . . . . . . . . . . . . . . . . 1 . . . . Siege Activations 5 | . . . . . . . . . . . . . . . . . 1 4 . . . . Total Turns 181 | . . . . . . . . . . . . . . . . . 35 146 . . . . Longest Duration 66 | . . . . . . . . . . . . . . . . . 35 66 . . . . Martial Activations . | . . . . . . . . . . . . . . . . . . . . . . . Shielding Activations . | . . . . . . . . . . . . . . . . . . . . . . . Robots Disrupted . | . . . . . . . . . . . . . . . . . . . . . . . Combat Hostiles . | . . . . . . . . . . . . . . . . . . . . . . . Robots Corrupted . | . . . . . . . . . . . . . . . . . . . . . . . Combat Hostiles . | . . . . . . . . . . . . . . . . . . . . . . . Parts Fried . | . . . . . . . . . . . . . . . . . . . . . . . Impact Corruptions . | . . . . . . . . . . . . . . . . . . . . . . . Robots Melted 5 | . . . 1 . . . . . 1 1 . . . . . . . 2 . . . . Combat Hostiles 4 | . . . . . . . . . 1 1 . . . . . . . 2 . . . . Parts Melted 66 | . 2 1 1 12 . . . . 10 2 4 1 3 2 . . 7 20 1 . . . Heat Transferred 24433 | . 1001 2006 592 2400 149 . 325 50 3733 1286 1628 1388 557 1075 . 259 1665 5912 407 . . . Parts Sabotaged . | . . . . . . . . . . . . . . . . . . . . . . . Parts Stolen . | . . . . . . . . . . . . . . . . . . . . . . . Parts Stripped . | . . . . . . . . . . . . . . . . . . . . . . . Power Chain Reactions . | . . . . . . . . . . . . . . . . . . . . . . . Alert | -11 -10 -10 -9 -7 -7 -7 -6 -6 -6 -6 -6 -6 -5 -5 -5 -5 -4 -4 -4 -4 -3 -3 ------- Run | Yrd Mat Sub Rec Fac Low Zio Pro Fac Ext Cet Arc Hub Fac Upp Upp Zhi Pro Fac Arm Lab Res Tes Maximum Alert Level 4 | . . . . 1 . . . . 2 1 1 4 2 . . . . 2 1 . . . Low Security (%) 63 | 100 100 . 100 59 . . . 100 66 . 23 17 . . . . . 56 53 . 100 100 Level 1 22 | . . . . 40 . . . . 16 100 76 8 . . . . . 29 46 . . . Level 2 8 | . . . . . . . . . 17 . . 4 100 . . . . 13 . . . . Level 3 5 | . . . . . . . . . . . . 60 . . . . . . . . . . Level 4 . | . . . . . . . . . . . . 8 . . . . . . . . . . Level 5 . | . . . . . . . . . . . . . . . . . . . . . . . High Security . | . . . . . . . . . . . . . . . . . . . . . . . Max Security . | . . . . . . . . . . . . . . . . . . . . . . . Peak Influence 1441 | 15 127 . 28 384 . . . 129 521 374 287 1441 692 . . . . 599 312 . 70 50 Initial 692 | . . . 16 . . . . . 24 276 106 60 692 . . . . 300 291 . . . Average 187 | 2 25 . 1 130 . . . 39 171 291 224 677 559 . . . . 218 193 . 25 18 Influence Increases 9054 | 30 369 105 98 963 90 . 202 511 1149 317 301 2045 174 120 270 15 290 1311 463 . 171 60 Destroy 0b10 Robot/C 4040 | . 200 80 40 460 80 . 120 300 600 140 80 500 80 60 180 . 260 620 240 . . . Destroy 0b10 Robot/NC 360 | 30 35 . 20 35 . . . 10 40 10 40 75 . . . 15 10 30 . . 10 . Destroy Leader 806 | . 48 10 . 164 10 . 20 60 64 . . 156 20 . 30 . 20 122 80 . 2 . Allied During Kill 1314 | . . . . 38 . . 47 4 337 145 120 561 2 . . . . . 59 . 1 . Successful Hack 217 | . 22 . 31 60 . . . 48 35 . . . . . . . . 21 . . . . Disable Machine 615 | . 45 . . 120 . . . 60 . 15 60 255 15 . . . . . 30 . 15 . Anti-Garrison Action 150 | . . . . . . . . . . . . 150 . . . . . . . . . . Destroy Structure 577 | . 19 . 7 86 . . . 29 28 7 1 168 42 . . . . 128 54 . 8 . Advance Influence 300 | . . . . . . . . . . . . . . . . . . 300 . . . . Partial Spotted 60 | . . . . . . . . . . . . . . . . . . 45 . . . 15 Lose Combat Pursuer 615 | . . 15 . . . . 15 . 45 . . 180 15 60 60 . . 45 . . 135 45 Influence Decreases 9034 | 30 266 172 134 746 307 . 202 461 705 544 395 805 1103 595 279 15 290 714 856 204 171 40 Entered New Map 2084 | . . 51 20 . 82 . . . 26 218 161 113 721 180 2 . . . 306 204 . . Time Decay 5734 | 30 246 121 114 556 215 . 182 361 502 286 214 492 302 406 277 15 250 634 380 . 121 30 Lost Part 299 | . 20 . . 20 10 . . 30 . . . . . 9 . . 40 80 70 . 10 10 Lost Ally 767 | . . . . 20 . . 20 70 177 40 20 200 80 . . . . . 100 . 40 . Purge Threat 150 | . . . . 150 . . . . . . . . . . . . . . . . . . Squads Dispatched 50 | . 2 . . 11 . . . 5 2 . . 10 5 . . . 1 6 6 . 1 1 Investigation 10 | . 1 . . 3 . . . 3 1 . . . 1 . . . . . . . . 1 Extermination 19 | . . . . 5 . . . 2 . . . 3 1 . . . . 5 2 . 1 . Reinforcement 14 | . 1 . . 2 . . . . 1 . . 4 1 . . . . 1 4 . . . Assault 6 | . . . . . . . . . . . . 3 2 . . . 1 . . . . . Garrison 1 | . . . . 1 . . . . . . . . . . . . . . . . . . Intercept . | . . . . . . . . . . . . . . . . . . . . . . . Searches Triggered . | . . . . . . . . . . . . . . . . . . . . . . . Construction Impeded 3 | . . . . . . . . . . . . 1 1 . . . . 1 . . . . Haulers Reinforced 1 | . . . . . . . . . . . . 1 . . . . . . . . . . Active Scanning Responses . | . . . . . . . . . . . . . . . . . . . . . . . Cargo Convoy Interrupts . | . . . . . . . . . . . . . . . . . . . . . . . Stealth | -11 -10 -10 -9 -7 -7 -7 -6 -6 -6 -6 -6 -6 -5 -5 -5 -5 -4 -4 -4 -4 -3 -3 --------- Run | Yrd Mat Sub Rec Fac Low Zio Pro Fac Ext Cet Arc Hub Fac Upp Upp Zhi Pro Fac Arm Lab Res Tes Distress Signals 21 | . 3 . . . . . . 1 4 2 . 2 1 . . . . 4 2 . 1 1 Communications Jammed 5 | . . . . . . . . . . . . . . . . . . 5 . . . . Distress Signals 5 | . . . . . . . . . . . . . . . . . . 5 . . . . Times Spotted 363 | . 19 14 2 26 4 . 7 21 30 8 28 42 8 7 12 . 16 49 23 . 32 15 Peak Tracking Total 15 | . 4 2 1 4 4 . 3 3 4 5 2 10 4 3 5 . 7 7 9 . 15 10 Tactical Retreats 26 | . 1 1 . . . . 1 . 3 . . 5 1 3 2 . . 3 . . 5 1 Traps | -11 -10 -10 -9 -7 -7 -7 -6 -6 -6 -6 -6 -6 -5 -5 -5 -5 -4 -4 -4 -4 -3 -3 ------- Run | Yrd Mat Sub Rec Fac Low Zio Pro Fac Ext Cet Arc Hub Fac Upp Upp Zhi Pro Fac Arm Lab Res Tes Traps Triggered 11 | . 1 . . . . . . 2 1 . . 2 1 . . . . 2 . . 2 . Indirectly . | . . . . . . . . . . . . . . . . . . . . . . . Trap Hack Attempts . | . . . . . . . . . . . . . . . . . . . . . . . Triggered . | . . . . . . . . . . . . . . . . . . . . . . . Disarmed . | . . . . . . . . . . . . . . . . . . . . . . . Reprogrammed . | . . . . . . . . . . . . . . . . . . . . . . . Reused . | . . . . . . . . . . . . . . . . . . . . . . . Traps Extracted . | . . . . . . . . . . . . . . . . . . . . . . . Installed 1 | . . 1 . . . . . . . . . . . . . . . . . . . . Triggered . | . . . . . . . . . . . . . . . . . . . . . . . Machines | -11 -10 -10 -9 -7 -7 -7 -6 -6 -6 -6 -6 -6 -5 -5 -5 -5 -4 -4 -4 -4 -3 -3 ---------- Run | Yrd Mat Sub Rec Fac Low Zio Pro Fac Ext Cet Arc Hub Fac Upp Upp Zhi Pro Fac Arm Lab Res Tes Machines Disabled 51 | . 3 3 . 8 . . . 4 2 1 4 18 1 . . 1 . 1 2 2 1 . Max in Single Turn 1 | . 1 1 . 1 . . . 1 . 1 1 1 1 . . 1 . 1 1 1 . . Garrison Access 4 | . . . . . . . . . . . . 1 1 . . . . . . . 2 . Network Hub 1 | . . . . . . . . . . . . 1 . . . . . . . . . . Machines Repaired . | . . . . . . . . . . . . . . . . . . . . . . . Machines Dismantled . | . . . . . . . . . . . . . . . . . . . . . . . Machines Sabotaged . | . . . . . . . . . . . . . . . . . . . . . . . Overloaded Fab Kills . | . . . . . . . . . . . . . . . . . . . . . . . Hacking | -11 -10 -10 -9 -7 -7 -7 -6 -6 -6 -6 -6 -6 -5 -5 -5 -5 -4 -4 -4 -4 -3 -3 --------- Run | Yrd Mat Sub Rec Fac Low Zio Pro Fac Ext Cet Arc Hub Fac Upp Upp Zhi Pro Fac Arm Lab Res Tes Machines Accessed 65 | . 7 4 11 16 . . . 5 7 1 . 1 2 . 1 4 . 2 1 . 3 . Terminals 29 | . 6 . 6 9 . . . . 7 1 . . . . . . . . . . . . Fabricators 12 | . . . . 4 . . . 4 . . . . 1 . . . . 1 1 . 1 . Repair Stations 2 | . 1 . . . . . . . . . . . . . . . . 1 . . . . Recycling Units 5 | . . . 4 1 . . . . . . . . . . . . . . . . . . Scanalyzers . | . . . . . . . . . . . . . . . . . . . . . . . Garrison Access 7 | . . . . 2 . . . 1 . . . 1 1 . . . . . . . 2 . Total Hacks 152 | . 15 6 26 34 . . . 12 12 3 . 1 9 . 1 17 . 8 2 . 6 . Successful 94 | . 8 6 13 16 . . . 8 7 . . . 6 . 1 17 . 6 2 . 4 . Failed 58 | . 7 . 13 18 . . . 4 5 3 . 1 3 . . . . 2 . . 2 . Catastrophic 9 | . 2 . 1 3 . . . . 1 1 . . . . . . . . . . 1 . Database Lockouts . | . . . . . . . . . . . . . . . . . . . . . . . Manual 192 | . 10 1 10 11 . . . 49 2 1 . 55 13 . . . . 15 8 . 8 9 Terminals 64 | . 12 . 17 20 . . . . 12 3 . . . . . . . . . . . . Fabricators 39 | . . . . 10 . . . 11 . . . . 8 . . . . 5 2 . 3 . Repair Stations 6 | . 3 . . . . . . . . . . . . . . . . 3 . . . . Recycling Units 9 | . . . 8 1 . . . . . . . . . . . . . . . . . . Scanalyzers . | . . . . . . . . . . . . . . . . . . . . . . . Garrison Access 9 | . . . . 3 . . . 1 . . . 1 1 . . . . . . . 3 . Terminal Hacks 49 | . 6 6 6 6 . . . . 7 . . . . . 1 17 . . . . . . Record 10 | . . 3 1 1 . . . . . . . . . . . 5 . . . . . . Part Schematic 5 | . 1 . . . . . . . . . . . . . . 4 . . . . . . Robot Analysis 8 | . 2 . 1 1 . . . . . . . . . . . 4 . . . . . . Prototype ID Bank 7 | . . . 3 . . . . . . . . . . . . 4 . . . . . . Open Door 9 | . . 1 . . . . . . 7 . . . . . 1 . . . . . . . Terminal Index 1 | . 1 . . . . . . . . . . . . . . . . . . . . . Alert Level 1 | . . . . 1 . . . . . . . . . . . . . . . . . . Unreport Threat 1 | . . . . 1 . . . . . . . . . . . . . . . . . . Locate Traps 1 | . 1 . . . . . . . . . . . . . . . . . . . . . Dispatch Records 1 | . . . . 1 . . . . . . . . . . . . . . . . . . Hauler Manifests 1 | . 1 . . . . . . . . . . . . . . . . . . . . . Registered Prototypes 1 | . . . 1 . . . . . . . . . . . . . . . . . . . Zone Layout 1 | . . . . 1 . . . . . . . . . . . . . . . . . . Proto ID Catalog 1 | . . 1 . . . . . . . . . . . . . . . . . . . . Release Object 1 | . . 1 . . . . . . . . . . . . . . . . . . . . Fabricator Hacks 22 | . . . . 7 . . . 5 . . . . 3 . . . . 3 2 . 2 . Network Status 4 | . . . . 1 . . . 1 . . . . 1 . . . . 1 . . . . Load Schematic 10 | . . . . 3 . . . 3 . . . . 1 . . . . 1 1 . 1 . Build 8 | . . . . 3 . . . 1 . . . . 1 . . . . 1 1 . 1 . Repair Station Hacks 4 | . 2 . . . . . . . . . . . . . . . . 2 . . . . Scan Component 2 | . 1 . . . . . . . . . . . . . . . . 1 . . . . Repair 2 | . 1 . . . . . . . . . . . . . . . . 1 . . . . Recycling Unit Hacks 4 | . . . 4 . . . . . . . . . . . . . . . . . . . Retrieve Components 4 | . . . 4 . . . . . . . . . . . . . . . . . . . Scanalyzer . | . . . . . . . . . . . . . . . . . . . . . . . Garrison Access Hacks 3 | . . . . . . . . . . . . . 1 . . . . . . . 2 . Seal Access 3 | . . . . . . . . . . . . . 1 . . . . . . . 2 . Unauthorized Hacks 12 | . . . 3 3 . . . 3 . . . . 2 . . . . 1 . . . . Terminals 4 | . . . 2 2 . . . . . . . . . . . . . . . . . . Botnet 4 | . . . 2 2 . . . . . . . . . . . . . . . . . . Fabricators 7 | . . . . 1 . . . 3 . . . . 2 . . . . 1 . . . . Prioritize 2 | . . . . . . . . . . . . . 1 . . . . 1 . . . . Liberate 1 | . . . . . . . . 1 . . . . . . . . . . . . . . Recompile 4 | . . . . 1 . . . 2 . . . . 1 . . . . . . . . . Repair Stations . | . . . . . . . . . . . . . . . . . . . . . . . Recycling Units 1 | . . . 1 . . . . . . . . . . . . . . . . . . . Mask 1 | . . . 1 . . . . . . . . . . . . . . . . . . . Scanalyzers . | . . . . . . . . . . . . . . . . . . . . . . . Garrison Access . | . . . . . . . . . . . . . . . . . . . . . . . Data Cores Recovered 1 | . . . . . . . . . . . . . . . . . . . . . 1 . Used . | . . . . . . . . . . . . . . . . . . . . . . . Hacking Detections 39 | . 7 . 7 14 . . . 3 3 1 . 1 1 . . . . 1 . . 1 . Full Trace Events 4 | . 1 . . 2 . . . . 1 . . . . . . . . . . . . . Feedback Events . | . . . . . . . . . . . . . . . . . . . . . . . Feedback Blocked . | . . . . . . . . . . . . . . . . . . . . . . . Robot Schematics Acquired 11 | . . . . . . . . 8 . . . 3 . . . . . . . . . . Robots Built 2 | . . . . 2 . . . . . . . . . . . . . . . . . . Authchips . | . . . . . . . . . . . . . . . . . . . . . . . Time 67 | . . . . 67 . . . . . . . . . . . . . . . . . . Total Robot Build Rating 8 | . . . . 8 . . . . . . . . . . . . . . . . . . Part Schematics Acquired 79 | . 1 . . 16 3 2 3 10 4 1 . 19 . 2 . 5 . 1 12 . . . Parts Built 9 | . . . . 1 . . . 2 . . . . 1 . . . . 1 2 . 2 . Authchips 3 | . . . . . . . . . . . . . . . . . . 1 1 . 1 . Time 514 | . . . . 168 . . . 35 . . . . 128 . . . . 95 35 . 53 . Total Part Build Rating 53 | . . . . 4 . . . 12 . . . . 8 . . . . 5 12 . 12 . Parts Repaired 2 | . 1 . . . . . . . . . . . . . . . . 1 . . . . Time 57 | . 26 . . . . . . . . . . . . . . . . 31 . . . . Parts Recycled . | . . . . . . . . . . . . . . . . . . . . . . . Recycled Matter . | . . . . . . . . . . . . . . . . . . . . . . . Retrieved Matter . | . . . . . . . . . . . . . . . . . . . . . . . Retrieved Components 11 | . . . 11 . . . . . . . . . . . . . . . . . . . Parts Scanalyzed . | . . . . . . . . . . . . . . . . . . . . . . . Part Schematics Acquired . | . . . . . . . . . . . . . . . . . . . . . . . Parts Damaged . | . . . . . . . . . . . . . . . . . . . . . . . Bothacking | -11 -10 -10 -9 -7 -7 -7 -6 -6 -6 -6 -6 -6 -5 -5 -5 -5 -4 -4 -4 -4 -3 -3 ------------ Run | Yrd Mat Sub Rec Fac Low Zio Pro Fac Ext Cet Arc Hub Fac Upp Upp Zhi Pro Fac Arm Lab Res Tes Used RIF Installer . | . . . . . . . . . . . . . . . . . . . . . . . Robots Hacked 11 | . . . . . . 1 . . 2 1 1 2 1 . . 3 . . . . . . Non-combat 1 | . . . . . . . . . . . 1 . . . . . . . . . . . Combat 10 | . . . . . . 1 . . 2 1 . 2 1 . . 3 . . . . . . Robot Hacks Applied 12 | . . . . . . 1 . . 2 2 1 2 1 . . 3 . . . . . . parse_system 12 | . . . . . . 1 . . 2 2 1 2 1 . . 3 . . . . . . Relay Couplers Released 1 | . . . . . . . . . . . . 1 . . . . . . . . . . Machine Destruction 1 | . . . . . . . . . . . . 1 . . . . . . . . . . Fabnet Peak Effective % . | . . . . . . . . . . . . . . . . . . . . . . . Robots Rewired 20 | . . . . . . . . . 18 . . . . . . . 2 . . . . . Allies Hacked . | . . . . . . . . . . . . . . . . . . . . . . . Hacks Repelled . | . . . . . . . . . . . . . . . . . . . . . . . Allies | -11 -10 -10 -9 -7 -7 -7 -6 -6 -6 -6 -6 -6 -5 -5 -5 -5 -4 -4 -4 -4 -3 -3 -------- Run | Yrd Mat Sub Rec Fac Low Zio Pro Fac Ext Cet Arc Hub Fac Upp Upp Zhi Pro Fac Arm Lab Res Tes Total Allies 63 | . . . . 2 . 4 . 4 27 5 . 6 6 . . . 2 . 5 . 2 . Largest Group 14 | . . . . 2 . 4 4 3 11 14 10 10 4 . . . 1 . 5 . 2 . Highest-Rated Group 1038 | . . . . 64 . 154 154 92 620 1038 732 781 170 . . . 49 . 482 . 206 . Highest-Rated Ally 180 | . . . . 32 . 41 41 41 180 180 180 180 85 . . . 49 . 103 . 103 . Zionite Dispatches 12 | . . . . . . . . 3 1 . . 2 3 . . . . . 2 . 1 . Heavy 3 | . . . . . . . . . . . . . 1 . . . . . 1 . 1 . Light 2 | . . . . . . . . . . . . 1 . . . . . . 1 . . . Recon 1 | . . . . . . . . 1 . . . . . . . . . . . . . . Fire 1 | . . . . . . . . . . . . . 1 . . . . . . . . . Hacker 1 | . . . . . . . . . . . . 1 . . . . . . . . . . Hero 1 | . . . . . . . . . 1 . . . . . . . . . . . . . Thermal Resupply 1 | . . . . . . . . 1 . . . . . . . . . . . . . . Infowar Resupply 2 | . . . . . . . . 1 . . . . 1 . . . . . . . . . Total Orders 27 | . . . . . . . . 12 6 4 2 2 1 . . . . . . . . . STAY 10 | . . . . . . . . 2 3 3 1 1 . . . . . . . . . . ROAM 1 | . . . . . . . . 1 . . . . . . . . . . . . . . FOLLOW 6 | . . . . . . . . . 3 1 1 1 . . . . . . . . . . DROP 2 | . . . . . . . . 1 . . . . 1 . . . . . . . . . EXPLORE 4 | . . . . . . . . 4 . . . . . . . . . . . . . . RETURN 4 | . . . . . . . . 4 . . . . . . . . . . . . . . Ally Attacks 475 | . . . . 19 . . 11 10 151 53 24 167 6 . . . 4 . 28 . 2 . Total Damage 14169 | . . . . 1093 . . 246 307 2746 1247 635 5546 400 . . . 176 . 1624 . 149 . Kills 87 | . . . . 5 . . 3 1 23 8 4 34 1 . . . . . 7 . 1 . Allies Corrupted 5 | . . . . . . . . . 4 . . 1 . . . . . . . . . . Allies Melted . | . . . . . . . . . . . . . . . . . . . . . . . Intel | -11 -10 -10 -9 -7 -7 -7 -6 -6 -6 -6 -6 -6 -5 -5 -5 -5 -4 -4 -4 -4 -3 -3 ------- Run | Yrd Mat Sub Rec Fac Low Zio Pro Fac Ext Cet Arc Hub Fac Upp Upp Zhi Pro Fac Arm Lab Res Tes Active Infowar (turns) 22879 | 78 1283 1747 . 2042 2014 918 1067 1687 1582 562 . 650 663 1157 995 360 2266 2224 881 397 306 . Optics 9260 | . . 11 . . . . . . . . . . 663 1157 995 360 2266 2224 881 397 306 . Sensors 17435 | . . . . 2036 1995 916 1020 1581 1581 562 . 648 543 1082 969 356 2103 1646 397 . . . Structural 10531 | . . . . 257 316 917 717 1079 192 . . 230 335 657 929 354 1917 1490 438 397 306 . Seismic 6841 | 78 1283 1736 . 131 1673 . 291 1649 . . . . . . . . . . . . . . Jamming 482 | . . . . . . . . . . . . . . . . . . 21 461 . . . Robot Analysis Total 8 | . 2 . 1 1 . . . . . . . . . . . 4 . . . . . . Derelict Logs Recovered 14 | . . 2 . . 3 2 2 . . . . . . 1 1 . 3 . . . . . Drone Launches 4 | . . . . . . . . 4 . . . . . . . . . . . . . . Drone Recoveries 3 | . . . . . . . . 3 . . . . . . . . . . . . . . Zionite Intel Received 21 | . . . . . . . . 8 . . . 6 . . . . . 3 1 . 1 2 Main Access 2 | . . . . . . . . 1 . . . 1 . . . . . . . . . . Emergency Access 3 | . . . . . . . . 1 . . . 1 . . . . . . . . . 1 Guard Positions 1 | . . . . . . . . . . . . . . . . . . 1 . . . . Component Stockpiles 1 | . . . . . . . . . . . . . . . . . . 1 . . . . Prototype Stockpiles 1 | . . . . . . . . 1 . . . . . . . . . . . . . . Component Schematics 1 | . . . . . . . . . . . . . . . . . . . 1 . . . Prototype Schematics 2 | . . . . . . . . . . . . 2 . . . . . . . . . . Unaware Schematics 3 | . . . . . . . . 2 . . . 1 . . . . . . . . . . Unaware Analyses 1 | . . . . . . . . . . . . 1 . . . . . . . . . . Trap Installations 1 | . . . . . . . . 1 . . . . . . . . . . . . . . Active Terminals 1 | . . . . . . . . . . . . . . . . . . . . . . 1 Active Garrisons 3 | . . . . . . . . 1 . . . . . . . . . 1 . . 1 . Depthwide Sectors/-1 1 | . . . . . . . . 1 . . . . . . . . . . . . . . Exploration | -11 -10 -10 -9 -7 -7 -7 -6 -6 -6 -6 -6 -6 -5 -5 -5 -5 -4 -4 -4 -4 -3 -3 ------------- Run | Yrd Mat Sub Rec Fac Low Zio Pro Fac Ext Cet Arc Hub Fac Upp Upp Zhi Pro Fac Arm Lab Res Tes Turns Passed 29697 | 145 1370 4041 1672 2755 2043 1077 1220 1735 1785 624 449 1385 663 1157 995 360 2266 2224 881 397 340 113 Spaces Moved 15966 | 81 592 1714 863 1830 1503 831 885 970 822 236 99 470 327 657 544 184 786 1170 434 266 433 269 Core 115 | 5 . . . . . . . . . . . . . . . . . . 2 . 69 39 Treads 6319 | . 319 471 320 137 . . . 142 822 236 99 470 327 657 544 184 786 12 163 266 364 . Legs 6618 | 76 273 . . 851 1503 831 885 828 . . . . . . . . . 1158 213 . . . Wheels 2628 | . . 1243 543 842 . . . . . . . . . . . . . . . . . . Hover 56 | . . . . . . . . . . . . . . . . . . . 56 . . . Flight 230 | . . . . . . . . . . . . . . . . . . . . . . 230 Fastest Speed 32 | 50 120 150 160 95 123 123 123 123 165 160 160 160 160 160 160 160 160 120 60 70 50 32 Average Speed 144 | 115 141 199 186 120 123 123 123 129 166 160 160 160 160 160 160 160 198 129 137 101 68 36 Slowest Speed 1150 | 120 160 360 340 160 123 123 130 167 167 165 160 240 160 160 160 160 240 240 1150 270 270 50 Overloaded Moves 74 | . . . . . . . . . . . . . . . . . . . . . . 74 Propulsion Burnouts . | . . . . . . . . . . . . . . . . . . . . . . . Robots Hopped 8 | . . . . . . . . . . . . . . . . . . . . . . 8 Potential Cave-ins 4 | . . . . . 1 . . . . . . 3 . . . . . . . . . . Cave-ins Triggered . | . . . . . . . . . . . . . . . . . . . . . . . Teleports 2 | . . . . . . . . . . . . . . . . . . . 1 1 . . Exploration Rate (%) 61 | 4 89 84 99 44 90 89 83 31 82 65 73 52 9 71 71 61 83 36 24 95 32 46 Regions Visited 22 Branch Regions 16 Pre-discovered Areas 14 | . . 2 . . 1 3 . 4 . . . . . . . 3 1 . . . . . Known Exits Taken 18 | . . . . 1 1 1 1 1 1 1 1 1 1 1 1 1 1 1 1 1 1 . Unknown Exits Taken 4 | 1 1 1 1 . . . . . . . . . . . . . . . . . . . Scrap Searched 24 | . . 12 . . 3 2 3 . . . . . . 3 . . 1 . . . . . Spaces Dug 234 | . 17 . . 28 30 . 8 20 . . . 3 12 2 58 . 17 28 8 . 3 . Terrain Destroyed 485 | . 23 . 6 30 60 . 14 35 . 9 . 16 21 6 115 . 81 56 10 . 3 . Melee 37 | . . . . 24 2 . . 5 . . . . . . . . . . 3 . 3 . Projectile 226 | . 8 . 6 4 35 . . 30 . 9 . 16 21 6 9 . 19 56 7 . . . AOE 222 | . 15 . . 2 23 . 14 . . . . . . . 106 . 62 . . . . . Terrain Rammed . | . . . . . . . . . . . . . . . . . . . . . . . Walls Destroyed . | . . . . . . . . . . . . . . . . . . . . . . . Machines Disabled . | . . . . . . . . . . . . . . . . . . . . . . . Actions | -11 -10 -10 -9 -7 -7 -7 -6 -6 -6 -6 -6 -6 -5 -5 -5 -5 -4 -4 -4 -4 -3 -3 --------- Run | Yrd Mat Sub Rec Fac Low Zio Pro Fac Ext Cet Arc Hub Fac Upp Upp Zhi Pro Fac Arm Lab Res Tes Total 21045 | 110 964 2218 908 2221 1615 882 995 1303 1149 440 323 1051 429 721 634 231 1408 1641 688 378 461 275 Wait 3160 | 7 246 338 10 189 18 38 62 155 101 142 147 529 58 33 48 6 557 251 147 69 4 5 Move 15929 | 80 591 1713 862 1829 1502 830 884 969 821 235 98 469 326 656 543 183 785 1169 433 265 432 254 Hop 7 | . . . . . . . . . . . . . . . . . . . . . . 7 Pick Up 188 | 6 11 29 5 32 5 2 8 20 6 10 1 4 4 . . 3 . 16 16 7 1 2 Fast Attach 89 | 7 2 5 2 13 1 . . 2 1 5 3 1 2 . 1 6 1 8 14 6 5 4 Attach 69 | . 2 7 2 8 1 . 3 10 3 1 1 . 3 1 . . 2 14 4 5 2 . Detach 17 | . . 1 1 1 . . . . . . . . . . . 1 . 4 3 4 1 1 Swap 358 | . 22 21 2 43 15 9 23 37 40 8 6 17 8 11 18 13 21 26 18 . . . Drop 218 | . 11 34 8 24 4 2 10 18 16 16 4 5 3 . 1 8 . 7 31 9 5 2 Fire 815 | 10 77 69 16 55 67 1 5 82 38 23 63 26 25 20 22 10 42 146 17 . 1 . Melee 68 | . . . . 27 2 . . 6 3 . . . . . 1 1 . . 5 13 10 . Ram . | . . . . . . . . . . . . . . . . . . . . . . . Kick 1 | . . . . . . . . 1 . . . . . . . . . . . . . . Crush 2 | . 2 . . . . . . . . . . . . . . . . . . . . . Escape Stasis 3 | . . . . . . . . 3 . . . . . . . . . . . . . . Rewire 120 | . . . . . . . . . 120 . . . . . . . . . . . . . Trap 1 | . . 1 . . . . . . . . . . . . . . . . . . . . Miscellaneous . | . . . . . . . . . . . . . . . . . . . . . . . Route ------- -11/Scrapyard -10/Materials (discovered 5 exits: [*Mat x3] / [*Min] / *Sub) -10/Subcaves (discovered 3 exits: [*Mat x2] / *Rec) -9/Recycling (discovered 2 exits: *Fac / [*Scr]) -7/Factory (discovered 2 exits: *Fac / *Low) -7/Lower Caves (discovered 2 exits: [*Low] / *Zio) -7/Zion -6/Proximity Caves -6/Factory (discovered 6 exits: *Fac x4 / *Ext x2) -6/Extension (discovered 2 exits: *Fac / *Cet) -6/Cetus (discovered 2 exits: *Fac / *Arc) -6/Archives (discovered 2 exits: *Hub x2) -6/Hub_04(d) (discovered 4 exits: *Fac x4) -5/Factory -5/Upper Caves -5/Upper Caves (discovered 2 exits: Fac / *Zhi) -5/Zhirov -4/Proximity Caves -4/Factory (discovered 3 exits: Res / *Upp / *Arm) -4/Armory (discovered 2 exits: Res / *Lab) -4/Lab -3/Research -3/Testing History --------- Turn | Location | Event 8 | -11/Scrapyard | Discovered new exit (range 15) 146 | -11/Scrapyard | Entered Materials 301 | -10/Materials | Build established: Mutant 676 | -10/Materials | Discovered new exit (range 16) 789 | -10/Materials | Discovered new exit (range 15) 793 | -10/Materials | Discovered new exit (range 14) 846 | -10/Materials | Derelicts attacked the area 1109 | -10/Materials | Discovered new exit (range 3) 1311 | -10/Materials | Repaired Lgt. Treads 1371 | -10/Materials | Discovered new exit (range 16) 1516 | -10/Materials | Entered Subcaves 2085 | -10/Subcaves | Shifting Twisted Machinery released Hvy. Riot Gun 2175 | -10/Subcaves | Shifting Twisted Machinery released Battle Cannon 3092 | -10/Subcaves | Shifting Twisted Machinery released Spk. Treads 3098 | -10/Subcaves | Learned location of Zion (-7) 3178 | -10/Subcaves | Shifting Twisted Machinery released Riot Gun 3251 | -10/Subcaves | Disturbed a concealed Subdweller 3267 | -10/Subcaves | Core integrity fell below 50% 3370 | -10/Subcaves | Visited Clippyterm 3374 | -10/Subcaves | Learned Factory garrison access intel 3485 | -10/Subcaves | Shifting Twisted Machinery released Shrapnel Trap 3661 | -10/Subcaves | Visited 4L-MR0's lab 3692 | -10/Subcaves | Found Cargo Legs 3862 | -10/Subcaves | Discovered new exit (range 9) 4360 | -10/Subcaves | Learned 2 Materials zone layouts 4620 | -10/Subcaves | A swath of the cavern ceiling suddenly collapsed 4709 | -10/Subcaves | Met a Zionite searching for "candidates" 4898 | -10/Subcaves | Disturbed a concealed Subdweller 5154 | -10/Subcaves | Discovered new exit (range 5) 5191 | -10/Subcaves | Discovered new exit (range 10) 5369 | -10/Subcaves | Found SUBCON Basin 5557 | -10/Subcaves | Entered Recycling 5981 | -9/Recycling | Build established: Derelict-Mutant 5991 | -9/Recycling | Discovered new exit (range 4) 6232 | -9/Recycling | Scanned before Scraplab entrance 6260 | -9/Recycling | Entered Scraplab 6287 | -9/Recycling | Discovered new exit (range 3) 6300 | -9/Recycling | Build established: Mutant 7071 | -9/Recycling | Build established: Scavenger-Mutant 7229 | -9/Recycling | Entered Factory 7229 | -7/Factory | Evolved 6 slots: Propulsion x2, Utility x3, Weapon x1 7230 | -7/Factory | Loaded intel: 4 garrison access locations 7358 | -7/Factory | Discovered new exit (range 15) 7371 | -7/Factory | Tech Extrapolator generated special schematic: Machine Rigger 7482 | -7/Factory | Found Prototype Launcher 7482 | -7/Factory | Identified Rocket Array 7602 | -7/Factory | Identified exit to Factory 8028 | -7/Factory | Fabricated Y-54 Guardian? 8028 | -7/Factory | Tech Extrapolator generated special schematic: Deep Structural Scanner 8219 | -7/Factory | Attached Cargo Legs, gained temporary slots: Utility x2 8312 | -7/Factory | Build established: Scavenger-Skirmisher 8410 | -7/Factory | Discovered new exit (range 8) 8419 | -7/Factory | Identified exit to Lower Caves 8679 | -7/Factory | Garrison activated, responded to threat 9193 | -7/Factory | Fabricated Deep Structural Scanner? 9984 | -7/Factory | Entered Lower Caves 10268 | -7/Lower Caves | Build established: Skirmisher 10489 | -7/Lower Caves | Learned location of Extension (-6) 10520 | -7/Lower Caves | Learned 8 Factory zone layouts 10549 | -7/Lower Caves | Learned Factory security intel 11497 | -7/Lower Caves | Build established: Mutant 11816 | -7/Lower Caves | Spotted B-75 Beast 11948 | -7/Lower Caves | A Derelict revealed a hidden shortcut to a safe place 11990 | -7/Lower Caves | Discovered new exit (range 8) 12026 | -7/Lower Caves | Identified exit to Zion 12027 | -7/Lower Caves | Entered Zion 12119 | -7/Zion | Discovered new exit (range 16) 12198 | -7/Zion | Acquired unknown access codes intercepted by a Zionite 12204 | -7/Zion | Build established: Skirmisher 12296 | -7/Zion | Received a hallucinogenic algorithm 12385 | -7/Zion | Learned location of Armory (-4) 12405 | -7/Zion | Learned location of Data Miner (-6) 12422 | -7/Zion | Learned location of 1 exit from Factory 12547 | -7/Zion | Learned location of 1 exit from Proximity Caves 12580 | -7/Zion | Learned location of Warlord (-4) 12580 | -7/Zion | Given the Hacking Drone Bay 12582 | -7/Zion | Found Prototype Device 12582 | -7/Zion | Identified Hacking Drone Bay 12734 | -7/Zion | Found CR-A16's Pointy Stick 12805 | -7/Zion | Met Imprinter 12832 | -7/Zion | Imprinted 12834 | -7/Zion | Declared Zion's savior 13065 | -7/Zion | Identified exit to Proximity Caves 13104 | -7/Zion | Entered Proximity Caves 13104 | -6/Proximity Caves | Accompanied by 4 allies 13274 | -6/Proximity Caves | Learned Factory terminal intel 14324 | -6/Proximity Caves | Entered Factory 14324 | -6/Factory | Accompanied by 2 allies 14324 | -6/Factory | Evolved 2 slots: Utility x2 14325 | -6/Factory | Identified exit to Factory 14326 | -6/Factory | Identified exit to Extension 14328 | -6/Factory | Loaded intel: 28 terminal locations 14478 | -6/Factory | Retrieved Zion intel report: Prototype Stockpiles 14657 | -6/Factory | Retrieved Zion intel report: Unaware Schematics 14658 | -6/Factory | Zion Thermal Resupply teleported in 14933 | -6/Factory | Retrieved Zion intel report: Main Access 14934 | -6/Factory | Zion Recon squad teleported in 15026 | -6/Factory | Retrieved Zion intel report: Active Garrisons 15045 | -6/Factory | Retrieved Zion intel report: Emergency Access 15064 | -6/Factory | Retrieved Zion intel report: Unaware Schematics 15372 | -6/Factory | Retrieved Zion intel report: Trap Installations 15553 | -6/Factory | Retrieved Zion intel report: Depthwide Sectors/-5 15554 | -6/Factory | Zion Infowar Resupply teleported in 15624 | -6/Factory | Terminal network hard line cut 15650 | -6/Factory | Fabricated Adv. Plasma Cannon (x2) 16059 | -6/Factory | Entered Extension 16554 | -6/Extension | Lost 4 allies 16744 | -6/Extension | Rescued a captive Derelict 16753 | -6/Extension | Rescued a captive Derelict 16785 | -6/Extension | Rescued a captive Derelict 16786 | -6/Extension | Rescued a captive Derelict 16846 | -6/Extension | Rescued a captive Derelict 16858 | -6/Extension | Spotted B-75 Beast 16869 | -6/Extension | Revealed the true nature of CR-A16's Pointy Stick 16869 | -6/Extension | Destroyed B-75 Beast 16884 | -6/Extension | Disrupted transfer network 16903 | -6/Extension | Lost 3 allies 17005 | -6/Extension | Rescued a captive Derelict 17022 | -6/Extension | Rescued A7 17251 | -6/Extension | Spotted B-75 Beast 17266 | -6/Extension | Destroyed B-75 Beast 17385 | -6/Extension | Rescued a captive Derelict 17399 | -6/Extension | Rescued a captive Derelict 17468 | -6/Extension | Zion hero teleported in (7V-RTL) 17546 | -6/Extension | Terminal network hard line cut 17563 | -6/Extension | Lost 3 allies 17605 | -6/Extension | Build established: Scavenger-Skirmisher 17803 | -6/Extension | Discovered exit to Factory (range 10) 17805 | -6/Extension | Discovered new exit (range 6) 17823 | -6/Extension | Identified exit to Cetus 17844 | -6/Extension | Entered Cetus 17844 | -6/Cetus | Accompanied by 11 allies (incl. A7, 7V-RTL) 17849 | -6/Cetus | Acquired a Cetus Manufacturing Module code from A7 17899 | -6/Cetus | Spotted Cetus Guard 17899 | -6/Cetus | Spotted Cetus Guard 17903 | -6/Cetus | Spotted Cetus Guard 17904 | -6/Cetus | Spotted Cetus Guard 17907 | -6/Cetus | Allies destroyed Cetus Guard 17911 | -6/Cetus | Destroyed Cetus Guard 17915 | -6/Cetus | Allies destroyed Cetus Guard 17917 | -6/Cetus | Allies destroyed Cetus Guard 18003 | -6/Cetus | Started Cetus Manufacturing Module 18028 | -6/Cetus | Manufactured an Enhanced Grunt 18053 | -6/Cetus | Manufactured an Enhanced Grunt 18078 | -6/Cetus | Manufactured an Enhanced Grunt 18103 | -6/Cetus | Manufactured an Enhanced Grunt 18128 | -6/Cetus | Manufactured an Enhanced Grunt 18185 | -6/Cetus | Escorted A7 to Cetus Mainframe 18212 | -6/Cetus | Discovered new exit (range 15) 18257 | -6/Cetus | Spotted Cetus Guard 18257 | -6/Cetus | Spotted Cetus Guard 18258 | -6/Cetus | Spotted Cetus Guard 18259 | -6/Cetus | Spotted Cetus Guard 18267 | -6/Cetus | Allies destroyed Cetus Guard 18270 | -6/Cetus | Allies destroyed Cetus Guard 18283 | -6/Cetus | Allies destroyed Cetus Guard 18296 | -6/Cetus | Discovered exit to Factory (range 16) 18318 | -6/Cetus | Scared off Revision 17 18382 | -6/Cetus | Build established: Commander-Skirmisher 18400 | -6/Cetus | Murdered A7 18405 | -6/Cetus | Extracted ID and sensor layout for unrecognized location from A7's data core 18409 | -6/Cetus | Found Med. Regenerative Plating 18458 | -6/Cetus | Identified exit to Archives 18468 | -6/Cetus | Entered Archives 18468 | -6/Archives | Accompanied by 10 allies (7V-RTL) 18520 | -6/Archives | Discovered new exit (range 16) 18765 | -6/Archives | Build established: Scavenger-Tank 18831 | -6/Archives | Discovered new exit (range 15) 18905 | -6/Archives | Identified exit to Hub_04(d) 18917 | -6/Archives | Entered Hub_04(d) 18917 | -6/Hub_04(d) | Accompanied by 8 allies (7V-RTL) 19112 | -6/Hub_04(d) | Retrieved Zion intel report: Main Access 19113 | -6/Hub_04(d) | Zion Light squad teleported in 19135 | -6/Hub_04(d) | Found Zio. Weapon Casing 19144 | -6/Hub_04(d) | Spotted B-75 Beast 19158 | -6/Hub_04(d) | Destroyed B-75 Beast 19185 | -6/Hub_04(d) | Lost 3 allies 19188 | -6/Hub_04(d) | Zion Hacker squad teleported in 19373 | -6/Hub_04(d) | Lost 3 allies 19459 | -6/Hub_04(d) | Retrieved Zion intel report: Unaware Analyses 19538 | -6/Hub_04(d) | Build established: Scavenger-Skirmisher 19739 | -6/Hub_04(d) | Found Zio. Weapon Casing 19893 | -6/Hub_04(d) | Build established: Scavenger-Tank 19967 | -6/Hub_04(d) | First assault squad dispatched 19971 | -6/Hub_04(d) | Retrieved Zion intel report: Emergency Access 20005 | -6/Hub_04(d) | Retrieved Zion intel report: Unaware Schematics 20029 | -6/Hub_04(d) | Retrieved Zion intel report: Prototype Schematics 20085 | -6/Hub_04(d) | Retrieved Zion intel report: Prototype Schematics 20180 | -6/Hub_04(d) | Network Hub disabled 20208 | -6/Hub_04(d) | Lost 3 allies 20302 | -6/Hub_04(d) | Entered Factory 20302 | -5/Factory | Evolved 2 slots: Power x1, Utility x1 20482 | -5/Factory | Zion Fire squad teleported in 20487 | -5/Factory | Build established: Scavenger-Skirmisher 20497 | -5/Factory | Discovered new exit (range 8) 20513 | -5/Factory | Identified exit to Upper Caves 20569 | -5/Factory | Fabricated Fusion Bomb Launcher (x1) 20602 | -5/Factory | First assault squad dispatched 20625 | -5/Factory | Zion Infowar Resupply teleported in 20725 | -5/Factory | P-70 Sage assimilated allied B9-9H9(i) 20860 | -5/Factory | Zion Heavy squad teleported in 20965 | -5/Factory | Entered Upper Caves 21054 | -5/Upper Caves | Tech Extrapolator generated special schematic: Heat Bomb Trap 21739 | -5/Upper Caves | Attracted the attention of an 0b10 checkpoint 21834 | -5/Upper Caves | Learned 12 Factory zone layouts 22075 | -5/Upper Caves | Discovered new exit (range 16) 22117 | -5/Upper Caves | Identified exit to Upper Caves 22122 | -5/Upper Caves | Entered another Upper Caves area 22341 | -5/Upper Caves | Discovered new exit (range 22) 22489 | -5/Upper Caves | Spotted B-75 Beast 22524 | -5/Upper Caves | Destroyed B-75 Beast 23098 | -5/Upper Caves | Discovered new exit (range 10) 23112 | -5/Upper Caves | Identified exit to Zhirov 23117 | -5/Upper Caves | Entered Zhirov 23117 | -5/Zhirov | Discovered new exit (range 3) 23146 | -5/Zhirov | Met Zhirov 23181 | -5/Zhirov | Learned location of Testing (-3) 23181 | -5/Zhirov | Learned location of Quarantine (-2) 23181 | -5/Zhirov | Learned location of Command (-1) 23191 | -5/Zhirov | Zhirov requested help retrieving the SGEMP Prototype 23219 | -5/Zhirov | Found Alien Artifact 23219 | -5/Zhirov | Identified Integrated Dissipator 23219 | -5/Zhirov | Installed Integrated Dissipator, increased core heat dissipation (+20) 23391 | -5/Zhirov | Found Alien Artifact 23476 | -5/Zhirov | Identified exit to Proximity Caves 23477 | -5/Zhirov | Entered Proximity Caves 23480 | -4/Proximity Caves | Spotter reported a threat 23480 | -4/Proximity Caves | Spotter reported a threat 23543 | -4/Proximity Caves | Learned Research stockpile data 23772 | -4/Proximity Caves | Attracted the attention of an 0b10 outpost 23813 | -4/Proximity Caves | Destroyed 7 combat bots 24252 | -4/Proximity Caves | Lost 3 parts (2p1n) 25426 | -4/Proximity Caves | Discovered new exit (range 19) 25738 | -4/Proximity Caves | Identified exit to Factory 25743 | -4/Proximity Caves | Entered Factory 25743 | -4/Factory | Evolved 2 slots: Propulsion x1, Utility x1 25744 | -4/Factory | Identified exit to Research 25867 | -4/Factory | Repaired Lgt. Antimatter Reactor 25952 | -4/Factory | Tech Extrapolator generated special schematic: Wartreads 25995 | -4/Factory | Fabricated Tactical Coordination Suite (x1) 26145 | -4/Factory | Retrieved Zion intel report: Component Stockpiles 26173 | -4/Factory | Retrieved Zion intel report: Active Garrisons 26425 | -4/Factory | Discovered new exit (range 9) 26435 | -4/Factory | Identified exit to Upper Caves 26483 | -4/Factory | Retrieved Zion intel report: Guard Positions 27181 | -4/Factory | Terminal network hard line cut 27413 | -4/Factory | Discovered new exit (range 18) 27473 | -4/Factory | Spotted B-86 Titan 27787 | -4/Factory | Identified exit to Armory 27891 | -4/Factory | System corruption reached 10% 27944 | -4/Factory | Lost 6 parts (2p1n3w) 27967 | -4/Factory | Entered Armory 28241 | -4/Armory | Build established: Infiltrator-Skirmisher 28303 | -4/Armory | Spotted B-86 Titan 28372 | -4/Armory | Destroyed B-86 Titan 28427 | -4/Armory | Fabricated Wartreads? 28481 | -4/Armory | Lost 4 parts (1p2n1u) 28587 | -4/Armory | Identified Transdimensional Reconstructor 28587 | -4/Armory | Warped through subspace to slip node 28587 | -4/Armory | Discovered new exit (range 1) 28587 | -4/Armory | Identified exit to Lab 28624 | -4/Armory | Retrieved Zion intel report: Component Schematics 28625 | -4/Armory | Zion Heavy squad teleported in 28728 | -4/Armory | Build established: Mutant 28781 | -4/Armory | Zion Light squad teleported in 28825 | -4/Armory | Discovered exit to Research (range 12) 28848 | -4/Armory | Entered Lab 28848 | -4/Lab | Discovered exit to Research (range 9) 28856 | -4/Lab | Hidden lab's door opened automatically 28856 | -4/Lab | Sensor layout match revealed 28857 | -4/Lab | Gained access to the hidden lab's interior 28861 | -4/Lab | Lost 5 allies 28948 | -4/Lab | Found Prototype Energy Cannon 28961 | -4/Lab | Identified Warp Cannon 28992 | -4/Lab | Found Alien Artifact 28992 | -4/Lab | Identified Core Regenerator 28992 | -4/Lab | Used Core Regenerator, restored core integrity (+287) 29006 | -4/Lab | Found Integrated Dissipator 29006 | -4/Lab | Installed Integrated Dissipator, increased core heat dissipation (+20) 29017 | -4/Lab | Found Transdimensional Reconstructor 29018 | -4/Lab | Warped through subspace 29031 | -4/Lab | Found Prototype Energy Cannon 29090 | -4/Lab | Found Quantum Router 29094 | -4/Lab | Found Prototype Device 29094 | -4/Lab | Identified AEGIS Remote Shield 29097 | -4/Lab | Identified Potential Cannon 29209 | -4/Lab | Found Alien Artifact 29245 | -4/Lab | Entered Research 29245 | -3/Research | Evolved 2 slots: Power x2 29246 | -3/Research | Identified exit to Testing 29333 | -3/Research | Retrieved Zion intel report: Active Garrisons 29334 | -3/Research | Zion Heavy squad teleported in 29379 | -3/Research | Build established: Hacker-Mutant 29551 | -3/Research | Released all parts (13) 29570 | -3/Research | Core integrity fell below 50% 29582 | -3/Research | Fabricated Wartreads? 29585 | -3/Research | Core integrity fell below 20% 29585 | -3/Research | Entered Testing 29612 | -3/Testing | Retrieved Zion intel report: Active Terminals 29645 | -3/Testing | Spotted Striker 29647 | -3/Testing | Spotted Striker 29649 | -3/Testing | Retrieved Zion intel report: Emergency Access 29698 | -3/Testing | Destroyed by Striker with Plasma Lance Last Messages --------------- 29651_ Exp. Power Amplifier blasted off. 29651_ Knocked back. 29655_ System corrupted: Heat flow error (+136). 29656_ Detecting system override signal. 29671_ ALERT: Suspicious activity at Terminal T007. Dispatching Investigation squad. 29675_ TF Node disabled. 29675_ Adv. Sensor Array tumbles out of TF Node. 29675_ Adv. Signal Interpreter tumbles out of TF Node. 29676_ Dropped Potential Cannon. 29676_ Acquired Adv. Sensor Array. 29678_ Acquired Adv. Signal Interpreter. 29680_ U-05 Engineer builds a Wall. 29681_ System corrupted: Heat flow error (+117). 29686_ Cld. Impulse Thruster destroyed. 29686_ K-01 Serf cleans the Prototyping Station. 29689_ Detecting system override signal. 29689_ K-01 Serf cleans the Prototyping Station. 29694_ Detecting system override signal. Map ----- +----------------------------------------------------+ | ###??????????????????????????????????????????????? | | ?????????????????????????????????????????????? | | """ #????????????????????????????????????????????? | | """ #????????????????????????????????????????????? | | """ ????????######???????????????????????????????? | | ????????# """#???????????????????????????????? | | ?? ##?###### !"???????????????????????????????? | | ####"### " "???????????????????????????????? | | ]# "##?????????????????????????????? | | + " !"#?????????????????????????????? | | ######## " """!"#?????????????????????????????? | | ###?################?####+####???????????????????? | | ""#?#""""""#?????????# ##??????????????????? | | ""#?#""""""#?????????# ??????????????????? | | T"#?# """ #?????????# #???????????????????? | | ""#?# " #?????????# ?????????????????????? | | ""#?# #?????????# #??????????????????????? | | ###?? ???????????# #??????????????????????? | | #######"############## k#??????????????????????? | | k ###????????????????????? | | T"#????????????????????? | | k ""#????????????????????? | | ^ K #??????????????????????? | | ###################### #??????????????????????? | | ?????????????????????# ##### #????????????????? | | ?????????????????????#s K@ +????????????????? | | ??????????????# s s #######????????????????? | | ??????????????# #??????????????????????? | | ??????????????# #??????????????????????? | | ??????????????# #??????????????????????? | | ??????????????##+##### #??????????????????????? | | ?????????????????????# #??????????????????????? | | ????????+????????????# #??????????????????????? | | ?????????????????????+ #??????????????????????? | | ?????????????????????# #???????????????????+??? | | ?????????????????????# #??????????????????????? | | ?????????????????????# #??????????????????????? | | ?????????????????????##+#+#??????????????????????? | | ?????????????????????????????????????????????????? | | ?????????????????????????????????????????????????? | | ?????????????????????????????????????????????????? | | ?????????????????????????????????????????????????? | | ?????????????????????????????????????????????????? | | ?????????????????????????????????????????????????? | | ?????????????????????????????????????????????????? | | ?????????????????????????????????????????????????? | | ?????????????????????????????????????????????????? | | ????????????????????????????????????????????+????? | | ?????????????????????????????????????????????????? | | ?????????????????????????????????????????????????? | +----------------------------------------------------+ Best States ------------- Heat Dissipation 101 Coolant Potential 65 Energy Generation 60 Energy Capacity 750 Matter Stores 300 Matter Capacity 300 Sight Range 22 Robot Scan Range 16 Terrain Scan Density 10 Jamming Range 14 Power Amplification 40 Base Temperature (-) 200 Armor Coverage 450 Resistance: KI 10 Evasion (%) 63 Core Analysis 6 Recoil Reduction 4 Particle Charging 25 Defensive Hacking 25 Authchip Count 4 Item Schematics ----------------- Hcp. Storage Unit | -10/Materials | Hacked Mak. Power Source | -7/Factory | Extrapolated Machine Rigger | -7/Factory | Extrapolated Ripper | -7/Factory | Extrapolated 0b10 Decoder Chip [Skirmisher] | -7/Factory | Extrapolated Mak. Spear | -7/Factory | Extrapolated Multitool | -7/Factory | Extrapolated Deep Structural Scanner | -7/Factory | Extrapolated Mak. Terrain Scan Processor | -7/Factory | Extrapolated Mak. Power Shielding | -7/Factory | Extrapolated Mak. Shrapnel Gun | -7/Factory | Extrapolated Mak. Leg | -7/Factory | Extrapolated Mak. ECM Suite | -7/Factory | Extrapolated Mak. Salvage Targeting Computer | -7/Factory | Extrapolated Mak. Light Armor Plating | -7/Factory | Extrapolated Mak. Coolant Network | -7/Factory | Extrapolated Battle Cannon | -7/Factory | Extrapolated Beamcaster | -7/Lower Caves | Extrapolated Mak. Medium Armor Plating | -7/Lower Caves | Extrapolated Mak. Ablative Armor | -7/Lower Caves | Extrapolated Slug Cannon | -7/Zion | Extrapolated Mak. Thermal Plating | -7/Zion | Extrapolated Hvy. Battle Rifle | -6/Proximity Caves | Extrapolated Mak. Laser | -6/Proximity Caves | Extrapolated Plasma Flamer | -6/Proximity Caves | Extrapolated 0b10 Decoder Chip [Generic] | -6/Factory | Extrapolated 0b10 Decoder Chip [Scout] | -6/Factory | Extrapolated Arc Thrower | -6/Factory | Extrapolated Lgt. Humpback | -6/Factory | Extrapolated Enh. Flamer | -6/Factory | Extrapolated Mak. Terrain Scanner | -6/Factory | Extrapolated Mak. Heavy Armor Plating | -6/Factory | Extrapolated Mak. Trap Scanner | -6/Factory | Extrapolated Mak. Targeting Computer | -6/Factory | Extrapolated Tactical Coordination Suite | -6/Factory | Extrapolated Hvy. Beamcaster | -6/Extension | Extrapolated Mak. Hacking Suite | -6/Extension | Extrapolated Mak. System Shield | -6/Extension | Extrapolated Mak. System Restoration Module | -6/Extension | Extrapolated Mak. Sensor Array | -6/Cetus | Extrapolated Mak. Weapon Shielding | -6/Hub_04(d) | Extrapolated Bore Cannon | -6/Hub_04(d) | Extrapolated Imp. Lightning Gun | -6/Hub_04(d) | Z-intel Com. Ion Cannon | -6/Hub_04(d) | Z-intel Imp. Heavy Machine Gun | -6/Hub_04(d) | Z-intel Multireflex Exoskeleton | -6/Hub_04(d) | Z-intel Impact Mace | -6/Hub_04(d) | Z-intel Mni. Assault Cannon | -6/Hub_04(d) | Z-intel Imp. Spread Laser | -6/Hub_04(d) | Z-intel Cld. VTOL Module | -6/Hub_04(d) | Z-intel Cld. Particle Cannon | -6/Hub_04(d) | Z-intel Prc. Shock Rifle | -6/Hub_04(d) | Z-intel Cld. Cesium-ion Thruster | -6/Hub_04(d) | Z-intel Prc. Rocket Launcher | -6/Hub_04(d) | Z-intel Gravity Neutralizer | -6/Hub_04(d) | Z-intel Imp. Cesium-ion Thruster | -6/Hub_04(d) | Z-intel Antimatter Cannon | -6/Hub_04(d) | Z-intel Cld. Airjet | -6/Hub_04(d) | Z-intel Mak. Core Shielding | -6/Hub_04(d) | Extrapolated Mak. Propulsion Shielding | -5/Upper Caves | Extrapolated Heat Bomb Trap | -5/Upper Caves | Extrapolated Assault Drone Bay | -5/Zhirov | Free Exp. Heat Sink | -5/Zhirov | Free Exp. Optical Array | -5/Zhirov | Free Imp. Arc Thrower | -5/Zhirov | Free Mak. Transmission Jammer | -5/Zhirov | Extrapolated Wartreads | -4/Factory | Extrapolated Point Defense System | -4/Armory | Z-intel Imp. Force Booster | -4/Armory | Z-intel Enh. Optical Array | -4/Armory | Z-intel Imp. Powered Armor | -4/Armory | Z-intel Particle Charger | -4/Armory | Z-intel Angular Momentum Engine | -4/Armory | Z-intel Hrd. Medium Armor Plating | -4/Armory | Z-intel Impulse Thruster | -4/Armory | Z-intel Adv. Cryofiber Web | -4/Armory | Z-intel Dispersion Rifle | -4/Armory | Z-intel Imp. Gyrokinetic Inverter | -4/Armory | Z-intel Lrn. Proton Cannon | -4/Armory | Z-intel Robot Schematics ------------------ S-27 Virus | -6/Factory | Z-intel R-06 Scavenger | -6/Factory | Z-intel W-25 Informer | -6/Factory | Z-intel B-48 Gladiator | -6/Factory | Z-intel Y-54 Guardian | -6/Factory | Z-intel G-50 Soldier | -6/Factory | Z-intel T-07 Excavator | -6/Factory | Z-intel M-22 Extractor | -6/Factory | Z-intel G-47 Trooper | -6/Hub_04(d) | Z-intel O-24 Administrator | -6/Hub_04(d) | Z-intel L-41 Fighter | -6/Hub_04(d) | Z-intel Fabricated ------------ Y-54 Guardian | x2 | -7/Factory | Preloaded Deep Structural Scanner | x1 | -7/Factory Adv. Plasma Cannon | x2 | -6/Factory | Preloaded Fusion Bomb Launcher | x1 | -5/Factory | Preloaded Tactical Coordination Suite | x1 | -4/Factory | Authchip Wartreads | x2 | -4/Armory | Authchip Wartreads | x2 | -3/Research | Authchip Repaired ---------- Lgt. Treads | 47% | -10/Materials Lgt. Antimatter Reactor | 17% | -4/Factory Alien Tech Used ----------------- Integrated Dissipator Transdimensional Reconstructor Core Regenerator Achievements -------------- None Challenges ------------ None Game ------ Seed MomentumMiniSink Manual? 0 Play Time 05:27:22 Cumulative 372.7 hours Start 2025.10.19 @ 10:29:30 End 2025.10.19 @ 19:56:40 Sessions 3 Manual Loads 0 Difficulty Rogue Special Mode None Game No. 245 Rogue 245 Adventurer 0 Explorer 0 Win Type - Total 5 Types 3/0/1/0/0/0/0/1/0/0 Lore% 78 Gallery% 79 Achievement% 71 Wizard Run 0 Options --------- Layout 1 ASCII 0 Keyboard 0 Movement Mouse Keybinds 0 Fullscreen 1 Font 24/Smallcaps Map View 50x40 Zoom Use 0% Tactical HUD 1 Map Filters NONE Filters NONE Steam 1 RUN: 37c9da1a-2ecc-4a23-969a-99eb47bd8030